Cogmind - Beta 17 @@@ ROGUE MODE // 2026.07.13 @ 10:17:34 Player: pinbox Result: Destroyed by JK-G8X(R) with Subdweller Laser Performance ------------- Evolutions (0) 0 Regions Visited (2) 400 Robots Destroyed (8) 40 Value Destroyed (158) 158 Prototype IDs (0) 0 Alien Tech Used (0) 0 Bonus (0) 0 TOTAL SCORE: 598 Bonus ------- None Cogmind --------- Core Integrity 0/250 Matter 300/300 Energy 100/100 System Corruption 0% Temperature Cool (6) Movement Treading (240) Ox1 Location -10/Subcaves Parts ------- > --- POWER (1) -------- (None) > --- PROPULSION (2) --- Light Treads > --- UTILITY (2) ------ High-capacity Storage Unit > --- WEAPON (2) ------- (None) > --- INVENTORY (20) --- Light Ion Engine Improved Heat Sink Peak State ------------ > --- POWER ------------ Light Ion Engine > --- PROPULSION ------- Light Treads Light Treads > --- UTILITY ---------- Small Storage Unit Seismic Detector > --- WEAPON ----------- Medium Laser Medium Laser > --- INVENTORY -------- Light Ion Engine [Rating: 7] Favorites ----------- Power Light Ion Engine Engine Light Ion Engine Propulsion Light Treads Treads Light Treads Utility Seismic Detector Device Seismic Detector Storage High-capacity Storage Unit Weapon Medium Laser Energy Gun Medium Laser Build | -11 -10 -10 ------- Run | Yrd Mat Sub Slots Evolved . | . . . Power . | . . . Propulsion . | . . . Utility . | . . . Weapon . | . . . Parts Attached 9 | 7 1 1 Power 1 | 1 . . Engine 1 | 1 . . Core . | . . . Reactor . | . . . Propulsion 3 | 2 . 1 Treads 3 | 2 . 1 Leg . | . . . Wheel . | . . . Hover . | . . . Flight . | . . . Utility 3 | 2 1 . Device 1 | 1 . . Storage 2 | 1 1 . Processor . | . . . Hackware . | . . . Protection . | . . . Artifact . | . . . Weapon 2 | 2 . . Energy Gun 2 | 2 . . Energy Cannon . | . . . Ballistic Gun . | . . . Ballistic Cannon . | . . . Launcher . | . . . Special Weapon . | . . . Impact Weapon . | . . . Slashing Weapon . | . . . Piercing Weapon . | . . . Special Melee Weapon . | . . . Unidentified Prototypes . | . . . Parts Lost 6 | . . 6 Power 1 | . . 1 Propulsion 2 | . . 2 Utility 1 | . . 1 Weapon 2 | . . 2 Highest Loss Streak 5 | . . 5 To Critical Strikes . | . . . Average Backups 2 | . 2 2 Power . | . 1 1 Propulsion . | . . . Utility . | . . 1 Weapon . | . . . Tool/Special . | . . . Unused Backups 2 | . . 2 Power 1 | . . 1 Propulsion . | . . . Utility 1 | . . 1 Weapon . | . . . Tool/Special . | . . . Average Slot Usage (%) 97 | . 100 94 Engine 13 | . 14 12 Treads 27 | . 28 26 Device 13 | . 14 12 Storage 14 | . 14 14 Energy Gun 27 | . 28 27 Peak Build Rating 7 | 7 7 7 Average Rating 6 | 5 7 6 On Entrance 4 | . 7 7 Avg Prop Armor Cover (%) . | . . . Naked Turns . | . . . Heaviest Build 48 | 13 48 48 Greatest Support 40 | 40 40 40 Greatest Overweight (x) 2 | . 1 2 Average Overweight (x) . | . . 1 Largest Inventory Capacity 20 | 8 20 20 Average Capacity 15 | 7 13 20 Most Carried 3 | 1 3 3 Average Carried 2 | . 2 2 Final Capacity 20 | 8 20 20 Final Carried 3 | 1 3 2 Class Distribution -------------------- 100% | Mutant Dominant Class ---------------- Mutant | -10/Materials Mutant | -10/Subcaves Resources | -11 -10 -10 ----------- Run | Yrd Mat Sub Matter Collected 280 | 270 10 . Remotely . | . . . Salvage Created 238 | 86 152 . Parts 14 | 2 12 . Haulers Intercepted . | . . . Recyclers Shooed . | . . . Parts Field Recycled . | . . . Retrieved Matter . | . . . Parts Self-Destructed 7 | . . 7 Prevented . | . . . Parts Restored . | . . . Kills | -11 -10 -10 ------- Run | Yrd Mat Sub Combat Hostiles Destroyed 6 | . 6 . Guns 5 | . 5 . Classes Destroyed 4 | 2 2 . Tunneler 1 | 1 . . Recycler 1 | 1 . . Swarmer 3 | . 3 . Grunt 3 | . 3 . Best Kill Streak 2 | 2 2 . Combat Bots Only 2 | . 2 . Max Kills in Single Turn 1 | 1 1 . Gunslinging . | . . . Exploded . | . . . Melee . | . . . Uniques/NPCs Destroyed . | . . . Combat | -11 -10 -10 -------- Run | Yrd Mat Sub Hostile Shots Fired 52 | . 30 22 Missed 13 | . 3 10 Hits 39 | . 27 12 Projectile 39 | . 27 12 AOE 9 | . . 9 Critical Strikes 1 | . 1 . Damage Taken 896 | . 301 595 Core 268 | . 54 214 Absorbed by Shields . | . . . Core Remaining (%) 100 | 100 . . Volleys Fired 55 | 6 19 30 Largest 2 | 2 2 2 Hottest 100 | 100 100 100 Shots Fired 108 | 12 38 58 Gun 108 | 12 38 58 Cannon . | . . . Launcher . | . . . Special . | . . . Kinetic . | . . . Thermal 108 | 12 38 58 Explosive . | . . . Electromagnetic . | . . . Robot Hit Streak 6 | 6 4 5 Robot Miss Streak 3 | 1 3 . Penetration Max . | . . . Secondary Targets 1 | . 1 . Max Gunslinging Chain 1 | . 1 . Shots Hit Robots 33 | 9 22 2 Core Hits 12 | 3 9 . Critical Kills . | . . . Critical Parts Destroyed . | . . . Critical Strikes 3 | . 3 . Burn 3 | . 3 . Melee Attacks . | . . . Impact . | . . . Slashing . | . . . Piercing . | . . . Sneak Attacks . | . . . Combat Hostiles . | . . . Follow-up Attacks . | . . . Damage Inflicted 427 | 112 290 25 Guns 426 | 112 289 25 Cannons . | . . . Explosions . | . . . Melee . | . . . Ramming 1 | . 1 . Kinetic . | . . . Thermal 426 | 112 289 25 Explosive . | . . . Electromagnetic . | . . . Impact . | . . . Slashing . | . . . Piercing . | . . . Highest Corruption . | . . . Average Corruption . | . . . Corruption Purged . | . . . Corruption Blocked . | . . . Overload Shots . | . . . Overflow Damage . | . . . Projectiles . | . . . Explosions . | . . . Melee . | . . . Knockbacks . | . . . Impact . | . . . Kinetic . | . . . Secondary . | . . . Self-Inflicted Damage . | . . . Shots . | . . . Rammed 1 | . 1 . Targets Rammed 1 | . 1 . Kicked . | . . . Crushed . | . . . Highest Temperature 318 | 140 318 . Average Temperature 105 | 71 115 . Received Heat Transfer 177 | . 135 42 Siege Activations . | . . . Martial Activations . | . . . Shielding Activations . | . . . Robots Disrupted . | . . . Combat Hostiles . | . . . Robots Corrupted . | . . . Combat Hostiles . | . . . Parts Fried . | . . . Impact Corruptions . | . . . Robots Melted 1 | . 1 . Combat Hostiles 1 | . 1 . Parts Melted 2 | . 2 . Heat Transferred 1480 | 333 1073 74 Parts Sabotaged . | . . . Parts Stolen . | . . . Parts Stripped . | . . . Power Chain Reactions . | . . . Alert | -11 -10 -10 ------- Run | Yrd Mat Sub Maximum Alert Level . | . . . Low Security (%) 100 | 100 100 . Level 1 . | . . . Level 2 . | . . . Level 3 . | . . . Level 4 . | . . . Level 5 . | . . . High Security . | . . . Max Security . | . . . Peak Influence 54 | 5 54 . Initial . | . . . Average 17 | . 21 . Influence Increases 229 | 10 219 . Destroy 0b10 Robot/C 120 | . 120 . Destroy 0b10 Robot/NC 10 | 10 . . Destroy Leader 20 | . 20 . Successful Hack 49 | . 49 . Lose Combat Pursuer 30 | . 30 . Influence Decreases 229 | 10 219 . Time Decay 229 | 10 219 . Squads Dispatched 1 | . 1 . Investigation 1 | . 1 . Extermination . | . . . Reinforcement . | . . . Assault . | . . . Garrison . | . . . Intercept . | . . . Searches Triggered . | . . . Construction Impeded . | . . . Haulers Reinforced . | . . . Active Scanning Responses . | . . . Cargo Convoy Interrupts . | . . . Stealth | -11 -10 -10 --------- Run | Yrd Mat Sub Distress Signals 1 | . 1 . Communications Jammed . | . . . Distress Signals . | . . . Times Spotted 13 | . 11 2 Peak Tracking Total 3 | . 3 2 Tactical Retreats 1 | . 1 . Traps | -11 -10 -10 ------- Run | Yrd Mat Sub Traps Triggered 1 | . 1 . Indirectly . | . . . Trap Hack Attempts . | . . . Triggered . | . . . Disarmed . | . . . Reprogrammed . | . . . Reused . | . . . Traps Extracted . | . . . Installed . | . . . Triggered . | . . . Machines | -11 -10 -10 ---------- Run | Yrd Mat Sub Machines Disabled . | . . . Max in Single Turn . | . . . Machines Repaired . | . . . Machines Dismantled . | . . . Machines Sabotaged . | . . . Overloaded Fab Kills . | . . . Hacking | -11 -10 -10 --------- Run | Yrd Mat Sub Machines Accessed 5 | . 5 . Terminals 5 | . 5 . Fabricators . | . . . Repair Stations . | . . . Recycling Units . | . . . Scanalyzers . | . . . Garrison Access . | . . . Total Hacks 20 | . 20 . Successful 9 | . 9 . Failed 11 | . 11 . Catastrophic . | . . . Database Lockouts . | . . . Manual 18 | . 18 . Terminals 20 | . 20 . Fabricators . | . . . Repair Stations . | . . . Recycling Units . | . . . Scanalyzers . | . . . Garrison Access . | . . . Terminal Hacks 8 | . 8 . Emergency Access Points 1 | . 1 . Terminal Index 1 | . 1 . Locate Traps 1 | . 1 . Hauler Manifests 1 | . 1 . Zone Layout 4 | . 4 . Fabricator Hacks . | . . . Repair Station Hacks . | . . . Recycling Unit Hacks . | . . . Scanalyzer . | . . . Garrison Access Hacks . | . . . Unauthorized Hacks 1 | . 1 . Terminals 1 | . 1 . Botnet 1 | . 1 . Fabricators . | . . . Repair Stations . | . . . Recycling Units . | . . . Scanalyzers . | . . . Garrison Access . | . . . Data Cores Recovered . | . . . Used . | . . . Hacking Detections 5 | . 5 . Full Trace Events . | . . . Feedback Events . | . . . Feedback Blocked . | . . . Robot Schematics Acquired . | . . . Robots Built . | . . . Authchips . | . . . Time . | . . . Total Robot Build Rating . | . . . Part Schematics Acquired . | . . . Parts Built . | . . . Authchips . | . . . Time . | . . . Total Part Build Rating . | . . . Part Studies Acquired . | . . . Parts Repaired . | . . . Time . | . . . Parts Recycled . | . . . Recycled Matter . | . . . Retrieved Matter . | . . . Retrieved Components . | . . . Parts Scanalyzed . | . . . Part Schematics Acquired . | . . . Parts Damaged . | . . . Bothacking | -11 -10 -10 ------------ Run | Yrd Mat Sub Used RIF Installer . | . . . Robots Hacked . | . . . Non-combat . | . . . Combat . | . . . Robot Hacks Applied . | . . . Relay Couplers Released . | . . . Fabnet Peak Effective % . | . . . Robots Rewired . | . . . Allies Hacked . | . . . Hacks Repelled . | . . . Allies | -11 -10 -10 -------- Run | Yrd Mat Sub Total Allies . | . . . Largest Group . | . . . Highest-Rated Group . | . . . Highest-Rated Ally . | . . . Total Orders . | . . . Ally Attacks . | . . . Total Damage . | . . . Kills . | . . . Allies Corrupted . | . . . Allies Melted . | . . . Intel | -11 -10 -10 ------- Run | Yrd Mat Sub Active Infowar (turns) 900 | 11 514 375 Seismic 900 | 11 514 375 Robot Analysis Total . | . . . Derelict Logs Recovered . | . . . Drone Launches . | . . . Drone Recoveries . | . . . Exploration | -11 -10 -10 ------------- Run | Yrd Mat Sub Turns Passed 1036 | 109 514 413 Spaces Moved 384 | 47 205 132 Core 2 | 2 . . Treads 382 | 45 205 132 Legs . | . . . Wheels . | . . . Hover . | . . . Flight . | . . . Fastest Speed 50 | 50 160 240 Average Speed 197 | 155 175 245 Slowest Speed 320 | 160 240 320 Overloaded Moves . | . . . Propulsion Burnouts . | . . . Robots Hopped . | . . . Potential Cave-ins . | . . . Cave-ins Triggered . | . . . Exploration Rate (%) 24 | 3 56 13 Regions Visited 2 Branch Regions 1 Pre-discovered Areas . | . . . Known Exits Taken . | . . . Unknown Exits Taken 2 | 1 1 . Scrap Searched . | . . . Spaces Dug . | . . . Terrain Destroyed . | . . . Melee . | . . . Projectile . | . . . AOE . | . . . Terrain Rammed . | . . . Walls Destroyed . | . . . Machines Disabled . | . . . Actions | -11 -10 -10 --------- Run | Yrd Mat Sub Total 552 | 68 321 163 Wait 101 | 8 93 . Move 382 | 46 204 132 Hop . | . . . Pick Up 3 | 1 2 . Fast Attach 7 | 7 . . Attach 1 | . . 1 Detach . | . . . Swap 1 | . 1 . Drop 1 | . 1 . Fire 55 | 6 19 30 Melee . | . . . Ram . | . . . Kick . | . . . Crush 1 | . 1 . Escape Stasis . | . . . Rewire . | . . . Trap . | . . . Miscellaneous . | . . . Route ------- -11/Scrapyard -10/Materials (discovered 3 exits: [*Min x2] / [*Sub]) -10/Subcaves (discovered 1 exit: [*Mat]) History --------- Turn | Location | Event 41 | -11/Scrapyard | Discovered new exit (range 13) 110 | -11/Scrapyard | Entered Materials 161 | -10/Materials | Discovered new exit (range 15) 310 | -10/Materials | Build established: Mutant 499 | -10/Materials | Discovered new exit (range 15) 609 | -10/Materials | Discovered new exit (range 7) 624 | -10/Materials | Entered Subcaves 677 | -10/Subcaves | Discovered new exit (range 14) 998 | -10/Subcaves | Core integrity fell below 50% 1031 | -10/Subcaves | Lost 5 parts (1p2n1u1w) 1033 | -10/Subcaves | Core integrity fell below 20% 1037 | -10/Subcaves | Destroyed by JK-G8X(R) with Subdweller Laser Last Messages --------------- 00594_ T-07 Excavator is excavating. 00596_ U-05 Engineer builds a Wall. 00599_ T-07 Excavator is excavating. 00603_ U-05 Engineer lays Concrete. 00609_ EXIT=FOUND 00612_ T-07 Excavator is excavating. 00612_ U-05 Engineer lays Concrete. 00616_ T-07 Excavator is excavating. 00617_ U-05 Engineer lays Concrete. 00621_ T-07 Excavator is excavating. LOCATION=UNKNOWN AMBIENT_HEAT=-10 GOAL=ESCAPE 00677_ EXIT=FOUND 00992_ Lgt. Treads destroyed. 00999_ Lgt. Ion Engine destroyed. 00999_ Lgt. Treads destroyed. 00999_ Seismic Detector destroyed. 01000_ Med. Laser destroyed. [Achievement: Back For More] Map ----- +----------------------------------------------------+ | ??????????????# #?????## ### ? | | ??????????????# ##????## # #???? | | ??????????????## #????# #???? | | ???????????????# ##???## # #???? | | ???????????????# #????# ## #??? | | ??????????????## #???## #????? #??? | | ??????????????# ##### #####??????????? | | ??????????????##### ## #??????????????? | | ??????????????????## #??????????????? | | ???????#########??## ## #?????????????? | | ??????##" """#### #?##?????????????? | | ??????#" """" "### ## #????????????????? | | ??????#"" "" " ## ### ##???????????????? | | ??????#"" "" ## ## #####???????????? | | ??????###" "## # < #??????????? | | ????????##+#?### ## ## ??????? | | ??????????????# #< ?????? | | ??????????????# ## ### ?????? | | ??????????????# #####??# ## ??????? | | ??????????????# #" ###???## #? ???????? | | ??????????????#####< ##??# ## ???????? | | ??????????????????# #?## #?????????? | | ??????????????????## ### ##????????? | | ???????????????????# #????????? | | ??????????????????##; #????????? | | ??????????????????# @ #????????? | | ?????????????????# ; #????????? | | ?????????????????# ##????????? | | ?????????????????## ## #?????????? | | ???????????????#?# #;#" #?????????? | | ??????????????## ## ; #?????????? | | ??????????????# ###; #RR ##?????????? | | ??????????????# ?###;;;; ###??????????? | | ??????????????# ?# " ;#??????????? | | ??????????????# ##; "##??????????? | | ??????????????# #???????????? | | ???????????????# #??????????? | | ???????????????## ##??????????? | | ????????????????## #???????????? | | ?????????????????# ###???????????? | | ????????????????# ## #?????????????? | | ???????????????# #?# #?????????????? | | ??????????????# #??# #????????????? | | ??????????????# #???### ###????????????? | | ??????????????? ??????? #####??????????????? | | ???????????????????????? #??????????????????? | | ??????????????????????? #??????????????????? | | ??????????????????????? # ??????????????????? | | ?????????????????????? ??????????????????? | | ?????????????????????? ??????????????????? | +----------------------------------------------------+ Best States ------------- Heat Dissipation 25 Energy Generation 10 Energy Capacity 125 Matter Stores 300 Matter Capacity 300 Sight Range 16 Terrain Scan Density 10 Evasion (%) 40 Recoil Reduction 2 Item Schematics ----------------- None Robot Schematics ------------------ None Fabricated ------------ Nothing Repaired ---------- Nothing Studied --------- None Alien Tech Used ----------------- None Achievements -------------- Back For More Challenges ------------ None Game ------ Seed SwarmDefenseGuard Manual? 0 Play Time 00:06:24 Cumulative 44.7 hours Start 2026.07.13 @ 10:12:29 End 2026.07.13 @ 10:17:34 Sessions 1 Manual Loads 0 Difficulty Rogue Special Mode None Game No. 50 Rogue 50 Adventurer 0 Explorer 0 Win Type - Total 1 Types 1/0/0/0/0/0/0/0/0/0 Lore% 42 Gallery% 35 Achievement% 34 Wizard Run 0 Options --------- Layout 1 ASCII 0 Keyboard 1 Movement Numpad Keybinds 1 Fullscreen 2 Font 24/Smallcaps Map View 50x40 Zoom Use 0% Tactical HUD 1 Map Filters NONE Filters NONE Steam 1 RUN: 8eb8eaa7-e489-42ad-87c8-bcf1e6881553